Workbook

Sheet List_items
A1: =+ROW() -> 1 | B1: UNIT: | C1: BUTIK XXYY | D1: Currency:
A2: =+ROW() -> 2 | B2: VAT_% | C2: 0.25 | D2: DKK
A3: 3 | B3: Valid per | C3: 2018-10-01
A4: 4 | I4: FROM CALCULATION SHEETS
A5: 5 | I5: 1 | J5: 2 | K5: 4 | L5: 5 | M5: 6 | N5: 7
A6: 6 | B6: Type | C6: Name | D6: At menu from | E6: Updated | F6: Covers | G6: MenuPriceACT | H6: GM%Goal | I6: Calc Price | J6: Menu Price, ex VAT | K6: Cost, 1 unit | L6: Gr Profit, act | M6: Gr Margin, act | N6: GM, goal
A7: 7 | B7: Starter_1 | C7: Starter nr 1 | F7: 1 | G7: 100 | I7: =IFERROR(VLOOKUP(I$5,INDIRECT($B7),9,0),"") -> 7.09 | J7: 100 | K7: 5.67 | L7: 74.33 | M7: 0.929 | N7: 0
A8: 8 | B8: Starter_2 | C8: Starter nr 2 | F8: 1 | G8: 100 | I8: =IFERROR(VLOOKUP(I$5,INDIRECT($B8),9,0),"") -> 22.58 | J8: 100 | K8: 18.06 | L8: 61.94 | M8: 0.774 | N8: 0
A9: 9 | B9: Starter_3
A10: 10 | B10: Starter_4
A11: 11 | B11: Starter_5
A12: 12 | B12: Starter_6
A13: 13 | B13: Starter_7
A14: 14 | B14: Starter_8
A15: 15 | B15: Starter_9
A16: 16 | B16: Starter_10
A17: 17 | B17: Starter_11
A18: 18 | B18: Starter_12
A19: 19 | B19: Starter_13
A20: 20 | B20: Starter_14
A21: 21 | B21: Starter_15
A22: 22 | B22: Main_1 | C22: Main nr 1 | F22: 1 | G22: 225 | I22: =IFERROR(VLOOKUP(I$5,INDIRECT($B22),9,0),"") -> 33.78 | J22: 225 | K22: 27.03 | L22: 152.97 | M22: 0.85 | N22: 0
A23: 23 | B23: Main_2 | C23: Main nr 2 | F23: 1 | G23: 295 | I23: 36.72 | J23: 295 | K23: 29.38 | L23: 206.62 | M23: 0.876 | N23: 0
A24: 24 | B24: Main_3
A25: 25 | B25: Main_4
A26: 26 | B26: Main_5
A27: 27 | B27: Main_6
A28: 28 | B28: Main_7
A29: 29 | B29: Main_8
A30: 30 | B30: Main_9
A31: 31 | B31: Main_10
A32: 32 | B32: Main_11
A33: 33 | B33: Main_12
A34: 34 | B34: Main_13
A35: 35 | B35: Main_14 | I35: =IFERROR(VLOOKUP(I$5,INDIRECT($B35),9,0),"") -> 
A36: 36 | B36: Main_15
A37: 37 | B37: Main_16
A38: 38 | B38: Main_17
A39: 39 | B39: Main_18
A40: 40 | B40: Main_19
A41: 41 | B41: Main_20
A42: 42 | B42: Main_21
A43: 43 | B43: Main_22
A44: 44 | B44: Main_23
A45: 45 | B45: Main_24
A46: 46 | B46: Main_25
A47: 47 | B47: Dessert_1
A48: 48 | B48: Dessert_2
A49: 49 | B49: Dessert_3
A50: 50 | B50: Dessert_4
A51: 51 | B51: Dessert_5
A52: 52 | B52: Dessert_6
A53: 53 | B53: Dessert_7
A54: 54 | B54: Dessert_8
A55: 55 | B55: Dessert_9
A56: 56 | B56: Dessert_10
A57: 57 | B57: Dessert_11
A58: 58 | B58: Dessert_12
A59: 59 | B59: Dessert_13
A60: 60 | B60: Dessert_14
A61: 61 | B61: Dessert_15
A62: 62 | B62: Dessert_16
A63: 63 | B63: Dessert_17
A64: 64 | B64: Dessert_18
A65: 65 | B65: Dessert_19
A66: =+ROW() -> 66 | B66: Dessert_20
A67: 67 | B67: Vegetables_1
A68: 68 | B68: Vegetables_2
A69: 69 | B69: Vegetables_3
A70: 70 | B70: Vegetables_4
A71: 71 | B71: Vegetables_5
A72: 72 | B72: Vegetables_6 | I72: =IFERROR(VLOOKUP(I$5,INDIRECT($B72),9,0),"") -> 
A73: 73 | B73: Vegetables_7
A74: 74 | B74: Vegetables_8
A75: 75 | B75: Vegetables_9
A76: 76 | B76: Vegetables_10
A77: 77 | B77: Sides_1
A78: 78 | B78: Sides_2
A79: 79 | B79: Sides_3
A80: 80 | B80: Sides_4
A81: 81 | B81: Sides_5
A82: 82 | B82: Sides_6
A83: 83 | B83: Sides_7
A84: 84 | B84: Sides_8
A85: 85 | B85: Sides_9
A86: 86 | B86: Sides_10
A87: 87 | B87: Other_1
A88: 88 | B88: Other_2
A89: 89 | B89: Other_3
A90: 90 | B90: Other_4
A91: 91 | B91: Other_5
A92: 92 | B92: Other_6
A93: 93 | B93: Other_7
A94: 94 | B94: Other_8
A95: 95 | B95: Other_9
A96: 96 | B96: Other_10
A97: 97 | B97: Other_11
A98: 98 | B98: Other_12
A99: 99 | B99: Other_13
A100: 100 | B100: Other_14
A101: 101 | B101: Other_15
A102: 102 | B102: Other_16
A103: 103 | B103: Other_17
A104: 104 | B104: Other_18
A105: 105 | B105: Other_19
A106: 106 | B106: Other_20

Sheet Ingredient list
A1: Lookup | B1: MainGroup | C1: SubGroup | D1: Ingredient | E1: Price_unit | F1: Unit | G1: Empty
A2: =+CONCATENATE(C2,D2) -> 
A3: =+CONCATENATE(C3,D3) -> 0 | B3: =+B2 -> 0 | C3: =+C2 -> 0
A4: 0 | B4: =+B3 -> 0 | C4: =+C3 -> 0
A5: 0 | B5: 0 | C5: 0
A6: 0 | B6: 0 | C6: 0
A7: 0 | B7: 0 | C7: 0
A8: 0 | B8: 0 | C8: 0
A9: 0 | B9: 0 | C9: 0
A10: 0 | B10: 0 | C10: 0
A11: 0 | B11: 0 | C11: 0
A12: 0 | B12: 0 | C12: 0
A13: 0 | B13: 0 | C13: 0
A14: 0 | B14: 0 | C14: 0
A15: 0 | B15: 0 | C15: 0
A16: 0 | B16: 0 | C16: 0
A17: 0 | B17: 0 | C17: 0
A18: 0 | B18: 0 | C18: 0
A19: 0 | B19: 0 | C19: 0
A20: 0 | B20: 0 | C20: 0
B21: 0
A22: 0 | B22: 0 | C22: =+C21 -> 0
A23: 0 | B23: 0 | C23: =+C22 -> 0
A24: 0 | B24: 0 | C24: 0
A25: 0 | B25: 0 | C25: 0
A26: 0 | B26: 0 | C26: 0
A27: 0 | B27: 0 | C27: 0
A28: 0 | B28: 0 | C28: 0
A29: 0 | B29: 0 | C29: 0
A30: 0 | B30: 0 | C30: 0
A31: 0 | B31: 0 | C31: 0
B32: 0
A33: 0 | B33: 0 | C33: =+C32 -> 0
A34: 0 | B34: 0 | C34: =+C33 -> 0
A35: 0 | B35: 0 | C35: 0
A36: 0 | B36: 0 | C36: 0
A37: 0 | B37: 0 | C37: 0
A38: 0 | B38: 0 | C38: 0
A39: 0 | B39: 0 | C39: 0
A40: 0 | B40: 0 | C40: 0
A41: 0 | B41: 0 | C41: 0
A42: 0 | B42: 0 | C42: 0
A43: 0 | B43: 0 | C43: 0
B44: =+B38 -> 0
A45: 0 | B45: =+B44 -> 0 | C45: =+C44 -> 0
A46: 0 | B46: 0 | C46: =+C45 -> 0
A47: =+CONCATENATE(C47,D47) -> 0 | B47: =+B46 -> 0 | C47: =+C46 -> 0
A48: 0 | B48: 0 | C48: 0
A49: 0 | B49: 0 | C49: 0
A50: =+CONCATENATE(C50,D50) -> 0 | B50: =+B49 -> 0 | C50: =+C49 -> 0
A51: 0 | B51: 0 | C51: 0
A52: 0 | B52: 0 | C52: 0
A53: =+CONCATENATE(C53,D53) -> 0 | B53: =+B47 -> 0 | C53: =+C47 -> 0
A54: =+CONCATENATE(C54,D54) ->  | B54: =+B43 -> 0
A55: 0 | B55: 0 | C55: =+C54 -> 0
A56: 0 | B56: 0 | C56: =+C55 -> 0
A57: 0 | B57: 0 | C57: 0
A58: 0 | B58: 0 | C58: 0
B59: 0
A60: 0 | B60: 0 | C60: =+C59 -> 0
A61: 0 | B61: 0 | C61: =+C60 -> 0
A62: =+CONCATENATE(C62,D62) -> 0 | B62: 0 | C62: 0
A63: 0 | B63: 0 | C63: 0
A64: 0 | B64: 0 | C64: 0
A65: 0 | B65: 0 | C65: 0
A66: 0 | B66: 0 | C66: 0
A67: 0 | B67: 0 | C67: 0
B68: 0
A69: 0 | B69: 0 | C69: =+C68 -> 0
A70: 0 | B70: 0 | C70: =+C69 -> 0
A71: 0 | B71: 0 | C71: 0
A72: 0 | B72: 0 | C72: 0
A73: 0 | B73: 0 | C73: 0
A74: 0 | B74: 0 | C74: 0
A75: 0 | B75: 0 | C75: 0
A76: 0 | B76: 0 | C76: 0
A77: 0 | B77: 0 | C77: 0
A78: 0 | B78: =+B77 -> 0 | C78: 0
A79: 0 | B79: 0 | C79: 0
A80: 0 | B80: 0 | C80: 0
A81: 0 | B81: 0 | C81: 0
A82: 0 | B82: 0 | C82: 0
A83: 0 | B83: 0 | C83: 0
A84: 0 | B84: 0 | C84: 0
A85: 0 | B85: 0 | C85: 0
A86: 0 | B86: 0 | C86: 0
B87: 0
A88: 0 | B88: 0 | C88: =+C87 -> 0
A89: 0 | B89: 0 | C89: =+C88 -> 0
A90: 0 | B90: 0 | C90: 0
A91: 0 | B91: 0 | C91: 0
A92: 0 | B92: 0 | C92: 0
A93: 0 | B93: 0 | C93: 0
A94: 0 | B94: 0 | C94: 0
A95: 0 | B95: 0 | C95: 0
A96: 0 | B96: 0 | C96: 0
A97: 0 | B97: 0 | C97: 0
A98: 0 | B98: 0 | C98: 0
A99: Dairy_Milk | B99: Diary | C99: Dairy_Milk
A100: Dairy_MilkSødmælk | B100: =+B99 -> Diary | C100: =+C99 -> Dairy_Milk | D100: Sødmælk | E100: 10 | F100: ltr
A101: Dairy_MilkKærnemælk | B101: =+B100 -> Diary | C101: =+C100 -> Dairy_Milk | D101: Kærnemælk | E101: 10 | F101: ltr
A102: Dairy_MilkFløde, piske | B102: Diary | C102: Dairy_Milk | D102: Fløde, piske | E102: 10 | F102: ltr
A103: Dairy_MilkFløde, double | B103: Diary | C103: Dairy_Milk | D103: Fløde, double | E103: 10 | F103: ltr
A104: Dairy_MilkCF 38% (1/2 ltr) | B104: Diary | C104: Dairy_Milk | D104: CF 38% (1/2 ltr) | E104: 10 | F104: kg
A105: Dairy_Milk | B105: Diary | C105: Dairy_Milk
A106: Dairy_Milk | B106: Diary | C106: Dairy_Milk
A107: Dairy_Milk | B107: Diary | C107: Dairy_Milk
A108: Dairy_Milk | B108: Diary | C108: Dairy_Milk
A109: =+CONCATENATE(C109,D109) -> Dairy_Egg | B109: Diary | C109: Dairy_Egg
A110: Dairy_EggPast. Blommer | B110: Diary | C110: =+C109 -> Dairy_Egg | D110: Past. Blommer | E110: 10 | F110: dnk
A111: Dairy_EggPast. Hvider | B111: Diary | C111: =+C110 -> Dairy_Egg | D111: Past. Hvider | E111: 10 | F111: dnk
A112: Dairy_Egghele æg | B112: Diary | C112: Dairy_Egg | D112: hele æg | E112: 10 | F112: dnk
A113: Dairy_Egg | B113: Diary | C113: Dairy_Egg
A114: =+CONCATENATE(C114,D114) -> Dairy_Egg | B114: =+B113 -> Diary | C114: =+C113 -> Dairy_Egg
A115: Dairy_Egg | B115: Diary | C115: Dairy_Egg
A116: Dairy_Cheese | B116: Diary | C116: Dairy_Cheese
A117: Dairy_CheeseComté | B117: Diary | C117: =+C116 -> Dairy_Cheese | D117: Comté | E117: 10 | F117: kg
A118: Dairy_CheeseManchego | B118: Diary | C118: =+C117 -> Dairy_Cheese | D118: Manchego | E118: 10 | F118: kg
A119: Dairy_Cheesemozerella | B119: Diary | C119: Dairy_Cheese | D119: mozerella | E119: 10 | F119: kg
A120: Dairy_CheeseFrrisk ost | B120: Diary | C120: Dairy_Cheese | D120: Frrisk ost | E120: 10 | F120: kg
A121: =+CONCATENATE(C121,D121) -> Dairy_CheeseRicotta | B121: =+B120 -> Diary | C121: =+C120 -> Dairy_Cheese | D121: Ricotta | E121: 10 | F121: kg
A122: =+CONCATENATE(C122,D122) -> Dairy_CheeseCheddar, skiver | B122: =+B121 -> Diary | C122: =+C121 -> Dairy_Cheese | D122: Cheddar, skiver | E122: 10 | F122: pk
A123: Dairy_CheeseParmesan | B123: Diary | C123: Dairy_Cheese | D123: Parmesan | E123: 10 | F123: kg
A124: Dairy_CheeseBrie de DK | B124: Diary | C124: Dairy_Cheese | D124: Brie de DK | E124: 10 | F124: kg
A125: Dairy_CheeseDigekrone | B125: Diary | C125: Dairy_Cheese | D125: Digekrone | E125: 10 | F125: kg
A126: =+CONCATENATE(C126,D126) -> Dairy_CheeseFeta | B126: =+B125 -> Diary | C126: =+C125 -> Dairy_Cheese | D126: Feta | E126: 10 | F126: ds
A127: Dairy_Cheese | B127: Diary | C127: Dairy_Cheese
A128: Dairy_Cheese | B128: Diary | C128: Dairy_Cheese
A129: Dairy_Cheese | B129: Diary | C129: Dairy_Cheese
A130: Dairy_Cheese | B130: Diary | C130: Dairy_Cheese
A131: =+CONCATENATE(C131,D131) -> Dairy_Cheese | B131: =+B130 -> Diary | C131: Dairy_Cheese
A132: Dairy_Butter | B132: Diary | C132: Dairy_Butter
A133: Dairy_Buttersmør,klaret 1kg | B133: Diary | C133: =+C132 -> Dairy_Butter | D133: smør,klaret 1kg | E133: 10 | F133: sp
A134: Dairy_ButterSmør usaltet 250g | B134: Diary | C134: =+C133 -> Dairy_Butter | D134: Smør usaltet 250g | E134: 10 | F134: pk
A135: Dairy_ButterRullesmør | B135: Diary | C135: Dairy_Butter | D135: Rullesmør | E135: 10 | F135: rulle
A136: Dairy_ButterSmør, klaret 1,8kg | B136: Diary | C136: Dairy_Butter | D136: Smør, klaret 1,8kg | E136: 10 | F136: sp
A137: Dairy_Butter | B137: Diary | C137: Dairy_Butter
A138: Dairy_Butter | B138: Diary | C138: Dairy_Butter
A139: =+CONCATENATE(C139,D139) -> 
A140: 0 | B140: =+B139 -> 0 | C140: =+C139 -> 0
A141: 0 | B141: 0 | C141: =+C140 -> 0
A142: =+CONCATENATE(C142,D142) -> 0 | B142: =+B141 -> 0 | C142: =+C141 -> 0
A143: 0 | B143: 0 | C143: 0
A144: 0 | B144: 0 | C144: 0
A145: 0 | B145: 0 | C145: 0
A146: 0 | B146: 0 | C146: 0
A147: 0 | B147: 0 | C147: 0
A148: 0 | B148: 0 | C148: 0
A149: 0 | B149: 0 | C149: 0
A150: 0 | B150: 0 | C150: 0
A151: 0 | B151: 0 | C151: 0
A152: 0 | B152: 0 | C152: 0
A153: 0 | B153: 0 | C153: 0
A154: 0 | B154: 0 | C154: 0
A155: 0 | B155: 0 | C155: 0
A156: 0 | B156: 0 | C156: 0
A157: 0 | B157: 0 | C157: 0
A158: 0 | B158: 0 | C158: 0
A159: 0 | B159: 0 | C159: 0
A160: 0 | B160: 0 | C160: 0
A161: 0 | B161: 0 | C161: 0
A162: 0 | B162: 0 | C162: 0
A163: 0 | B163: 0 | C163: 0
A164: 0 | B164: 0 | C164: 0
A165: 0 | B165: 0 | C165: 0
A166: 0 | B166: 0 | C166: 0
A167: 0 | B167: 0 | C167: 0
A168: 0 | B168: 0 | C168: 0
A169: 0 | B169: 0 | C169: 0
A170: 0 | B170: 0 | C170: 0
A171: 0 | B171: 0 | C171: 0
A172: 0 | B172: 0 | C172: 0
A173: 0 | B173: 0 | C173: 0
A174: 0 | B174: 0 | C174: 0
A175: 0 | B175: 0 | C175: 0
A176: 0 | B176: 0 | C176: 0
A177: 0 | B177: 0 | C177: 0
A178: 0 | B178: 0 | C178: 0
A179: 0 | B179: 0 | C179: 0
A180: 0 | B180: 0 | C180: 0
A181: 0 | B181: 0 | C181: 0
A182: =+CONCATENATE(C182,D182) -> 0 | B182: =+B181 -> 0 | C182: =+C181 -> 0
A183: 0 | B183: 0 | C183: 0
A184: 0 | B184: 0 | C184: 0
A185: 0 | B185: 0 | C185: 0
B186: Grocery
A187: 0 | B187: =+B186 -> Grocery | C187: =+C186 -> 0
A188: 0 | B188: Grocery | C188: =+C187 -> 0
A189: 0 | B189: Grocery | C189: 0
A190: 0 | B190: Grocery | C190: 0
A191: 0 | B191: Grocery | C191: 0
A192: 0 | B192: Grocery | C192: 0
A193: 0 | B193: Grocery | C193: 0
A194: 0 | B194: Grocery | C194: 0
A195: 0 | B195: Grocery | C195: 0
A196: 0 | B196: Grocery | C196: 0
A197: =+CONCATENATE(C197,D197) -> 0 | B197: =+B196 -> Grocery | C197: =+C196 -> 0
A198: 0 | B198: Grocery | C198: 0
A199: 0 | B199: Grocery | C199: 0
A200: 0 | B200: Grocery | C200: 0
... 111 more rows

Sheet Starter_1
A1: =+ROW() -> 1 | B1: Name of course | C1: =IFERROR(VLOOKUP($C$4,List_items!$B:$I,2,0),"") -> Starter nr 1 | G1: Calc Price to GM | I1: =+IFERROR(ROUND(I36/(1-I7)*1.25,2),"") -> 7.09
A2: =+ROW() -> 2 | B2: Restaurant | C2: =+List_items!$C$1 -> BUTIK XXYY | G2: Menu Price, act | I2: =+VLOOKUP($C$4,List_items!$B:$L,6,0) -> 100
A3: 3 | B3: At menu form/updated | D3: =IFERROR(VLOOKUP($C$4,List_items!$B:$I,3,0),"") -> 00:00:00 | E3: =+VLOOKUP($C$4,List_items!$B:$I,4,0) -> 00:00:00 | G3: Menu Price, ex VAT | I3: =IFERROR(ROUND(I2/(1+List_items!C2),0),"") -> 80
A4: 4 | B4: Fane_item value | C4: Starter_1 | G4: Cost, 1 unit | I4: =+IFERROR(ROUND(I36/H8,2),"") -> 5.67
A5: 5 | G5: Gr Profit, act | I5: =+IFERROR(I3-I4,"") -> 74.33
A6: 6 | G6: Gr Margin, act | I6: =+IFERROR(ROUND(I5/I3,3),"") -> 0.929
A7: 7 | G7: GM, goal | I7: =+VLOOKUP($C$4,List_items!$B:$L,7,0) -> 0
A8: 8 | G8: Covers: | H8: =+VLOOKUP($C$4,List_items!$B:$L,5,0) -> 1
A9: 9 | B9: MainGroup | C9: Ingredients | D9: Net dish | E9: Unit | F9: Waste | G9: Total use | H9: Unit Cost | I9: Costpris
A10: 10 | E10: =IFERROR(VLOOKUP(CONCATENATE($B10,$C10),'Ingredient list'!$A:$F,6,0),"") -> 0 | G10: =IFERROR(ROUND(D10/(1-F10),3),"") -> 0 | H10: =IFERROR(VLOOKUP(CONCATENATE($B10,$C10),'Ingredient list'!$A:$F,5,0),"") -> 0 | I10: =IFERROR(G10*H10,"") -> 0
A11: 11 | E11: =IFERROR(VLOOKUP(CONCATENATE($B11,$C11),'Ingredient list'!$A:$F,6,0),"") -> 0 | G11: =IFERROR(ROUND(D11/(1-F11),3),"") -> 0 | H11: =IFERROR(VLOOKUP(CONCATENATE($B11,$C11),'Ingredient list'!$A:$F,5,0),"") -> 0 | I11: =IFERROR(G11*H11,"") -> 0
A12: 12 | B12: Dairy_milk | C12: Sødmælk | D12: 0.3 | E12: =IFERROR(VLOOKUP(CONCATENATE($B12,$C12),'Ingredient list'!$A:$F,6,0),"") -> ltr | F12: 0.2 | G12: 0.375 | H12: =IFERROR(VLOOKUP(CONCATENATE($B12,$C12),'Ingredient list'!$A:$F,5,0),"") -> 10 | I12: 3.75
A13: 13 | B13: Dairy_cheese | C13: Frrisk ost | D13: 0.025 | E13: =IFERROR(VLOOKUP(CONCATENATE($B13,$C13),'Ingredient list'!$A:$F,6,0),"") -> kg | G13: 0.025 | H13: =IFERROR(VLOOKUP(CONCATENATE($B13,$C13),'Ingredient list'!$A:$F,5,0),"") -> 10 | I13: 0.25
A14: 14 | E14: =IFERROR(VLOOKUP(CONCATENATE($B14,$C14),'Ingredient list'!$A:$F,6,0),"") -> 0 | G14: 0 | H14: =IFERROR(VLOOKUP(CONCATENATE($B14,$C14),'Ingredient list'!$A:$F,5,0),"") -> 0 | I14: 0
A15: 15 | B15: Dairy_butter | C15: Smør, klaret 1,8kg | D15: 0.15 | E15: =IFERROR(VLOOKUP(CONCATENATE($B15,$C15),'Ingredient list'!$A:$F,6,0),"") -> sp | F15: 0.1 | G15: 0.167 | H15: =IFERROR(VLOOKUP(CONCATENATE($B15,$C15),'Ingredient list'!$A:$F,5,0),"") -> 10 | I15: 1.67
A16: 16 | E16: =IFERROR(VLOOKUP(CONCATENATE($B16,$C16),'Ingredient list'!$A:$F,6,0),"") -> 0 | G16: 0 | H16: =IFERROR(VLOOKUP(CONCATENATE($B16,$C16),'Ingredient list'!$A:$F,5,0),"") -> 0 | I16: 0
A17: 17 | E17: =IFERROR(VLOOKUP(CONCATENATE($B17,$C17),'Ingredient list'!$A:$F,6,0),"") -> 0 | G17: 0 | H17: =IFERROR(VLOOKUP(CONCATENATE($B17,$C17),'Ingredient list'!$A:$F,5,0),"") -> 0 | I17: 0
A18: 18 | E18: =IFERROR(VLOOKUP(CONCATENATE($B18,$C18),'Ingredient list'!$A:$F,6,0),"") -> 0 | G18: 0 | H18: =IFERROR(VLOOKUP(CONCATENATE($B18,$C18),'Ingredient list'!$A:$F,5,0),"") -> 0 | I18: 0
A19: 19 | E19: =IFERROR(VLOOKUP(CONCATENATE($B19,$C19),'Ingredient list'!$A:$F,6,0),"") -> 0 | G19: 0 | H19: =IFERROR(VLOOKUP(CONCATENATE($B19,$C19),'Ingredient list'!$A:$F,5,0),"") -> 0 | I19: 0
A20: 20 | E20: =IFERROR(VLOOKUP(CONCATENATE($B20,$C20),'Ingredient list'!$A:$F,6,0),"") -> 0 | G20: 0 | H20: =IFERROR(VLOOKUP(CONCATENATE($B20,$C20),'Ingredient list'!$A:$F,5,0),"") -> 0 | I20: 0
A21: 21 | E21: =IFERROR(VLOOKUP(CONCATENATE($B21,$C21),'Ingredient list'!$A:$F,6,0),"") -> 0 | G21: 0 | H21: =IFERROR(VLOOKUP(CONCATENATE($B21,$C21),'Ingredient list'!$A:$F,5,0),"") -> 0 | I21: 0
A22: 22 | E22: =IFERROR(VLOOKUP(CONCATENATE($B22,$C22),'Ingredient list'!$A:$F,6,0),"") -> 0 | G22: 0 | H22: =IFERROR(VLOOKUP(CONCATENATE($B22,$C22),'Ingredient list'!$A:$F,5,0),"") -> 0 | I22: 0
A23: 23 | E23: =IFERROR(VLOOKUP(CONCATENATE($B23,$C23),'Ingredient list'!$A:$F,6,0),"") -> 0 | G23: 0 | H23: =IFERROR(VLOOKUP(CONCATENATE($B23,$C23),'Ingredient list'!$A:$F,5,0),"") -> 0 | I23: 0
A24: 24 | E24: =IFERROR(VLOOKUP(CONCATENATE($B24,$C24),'Ingredient list'!$A:$F,6,0),"") -> 0 | G24: 0 | H24: =IFERROR(VLOOKUP(CONCATENATE($B24,$C24),'Ingredient list'!$A:$F,5,0),"") -> 0 | I24: 0
A25: 25 | E25: =IFERROR(VLOOKUP(CONCATENATE($B25,$C25),'Ingredient list'!$A:$F,6,0),"") -> 0 | G25: 0 | H25: =IFERROR(VLOOKUP(CONCATENATE($B25,$C25),'Ingredient list'!$A:$F,5,0),"") -> 0 | I25: 0
A26: 26 | E26: =IFERROR(VLOOKUP(CONCATENATE($B26,$C26),'Ingredient list'!$A:$F,6,0),"") -> 0 | G26: 0 | H26: =IFERROR(VLOOKUP(CONCATENATE($B26,$C26),'Ingredient list'!$A:$F,5,0),"") -> 0 | I26: 0
A27: 27 | E27: =IFERROR(VLOOKUP(CONCATENATE($B27,$C27),'Ingredient list'!$A:$F,6,0),"") -> 0 | G27: 0 | H27: =IFERROR(VLOOKUP(CONCATENATE($B27,$C27),'Ingredient list'!$A:$F,5,0),"") -> 0 | I27: 0
A28: 28 | E28: =IFERROR(VLOOKUP(CONCATENATE($B28,$C28),'Ingredient list'!$A:$F,6,0),"") -> 0 | G28: 0 | H28: =IFERROR(VLOOKUP(CONCATENATE($B28,$C28),'Ingredient list'!$A:$F,5,0),"") -> 0 | I28: 0
A29: 29 | E29: =IFERROR(VLOOKUP(CONCATENATE($B29,$C29),'Ingredient list'!$A:$F,6,0),"") -> 0 | G29: 0 | H29: =IFERROR(VLOOKUP(CONCATENATE($B29,$C29),'Ingredient list'!$A:$F,5,0),"") -> 0 | I29: 0
A30: 30 | E30: =IFERROR(VLOOKUP(CONCATENATE($B30,$C30),'Ingredient list'!$A:$F,6,0),"") -> 0 | G30: 0 | H30: =IFERROR(VLOOKUP(CONCATENATE($B30,$C30),'Ingredient list'!$A:$F,5,0),"") -> 0 | I30: 0
A31: 31 | E31: =IFERROR(VLOOKUP(CONCATENATE($B31,$C31),'Ingredient list'!$A:$F,6,0),"") -> 0 | G31: 0 | H31: =IFERROR(VLOOKUP(CONCATENATE($B31,$C31),'Ingredient list'!$A:$F,5,0),"") -> 0 | I31: 0
A32: 32 | E32: =IFERROR(VLOOKUP(CONCATENATE($B32,$C32),'Ingredient list'!$A:$F,6,0),"") -> 0 | G32: 0 | H32: =IFERROR(VLOOKUP(CONCATENATE($B32,$C32),'Ingredient list'!$A:$F,5,0),"") -> 0 | I32: 0
A33: 33 | E33: =IFERROR(VLOOKUP(CONCATENATE($B33,$C33),'Ingredient list'!$A:$F,6,0),"") -> 0 | G33: 0 | H33: =IFERROR(VLOOKUP(CONCATENATE($B33,$C33),'Ingredient list'!$A:$F,5,0),"") -> 0 | I33: 0
A34: 34 | E34: =IFERROR(VLOOKUP(CONCATENATE($B34,$C34),'Ingredient list'!$A:$F,6,0),"") -> 0 | G34: 0 | H34: =IFERROR(VLOOKUP(CONCATENATE($B34,$C34),'Ingredient list'!$A:$F,5,0),"") -> 0 | I34: 0
A35: 35 | E35: =IFERROR(VLOOKUP(CONCATENATE($B35,$C35),'Ingredient list'!$A:$F,6,0),"") -> 0 | G35: 0 | H35: =IFERROR(VLOOKUP(CONCATENATE($B35,$C35),'Ingredient list'!$A:$F,5,0),"") -> 0 | I35: 0
A36: 36 | B36: Fremgangs måde | G36: Costpris total | I36: =SUM(I10:I35) -> 5.67
A37: 37 | B37: COMMENTS
A38: 38
A39: 39
A40: 40
A41: 41
A42: 42
A43: 43
A44: 44
A45: 45
A46: 46
A47: 47
A48: 48
A49: 49
A50: 50

Sheet Starter_2
A1: =+ROW() -> 1 | B1: Name of course | C1: =IFERROR(VLOOKUP($C$4,List_items!$B:$I,2,0),"") -> Starter nr 2 | G1: Calc Price | I1: =+IFERROR(ROUND(I36/(1-I7)*1.25,2),"") -> 22.58
A2: =+ROW() -> 2 | B2: Restaurant | C2: =+List_items!$C$1 -> BUTIK XXYY | G2: Menu Price, fixed | I2: =+VLOOKUP($C$4,List_items!$B:$L,6,0) -> 100
A3: 3 | B3: At menu form/updated | D3: =IFERROR(VLOOKUP($C$4,List_items!$B:$I,3,0),"") -> 00:00:00 | E3: =+VLOOKUP($C$4,List_items!$B:$I,4,0) -> 00:00:00 | G3: Menu Price, ex VAT | I3: =IFERROR(ROUND(I2/(1+List_items!C2),0),"") -> 80
A4: 4 | B4: Fane_item value | C4: Starter_2 | G4: Cost, 1 unit | I4: =+IFERROR(ROUND(I36/H8,2),"") -> 18.06
A5: 5 | G5: Gr Profit, act | I5: =+IFERROR(I3-I4,"") -> 61.94
A6: 6 | G6: Gr Margin, act | I6: =+IFERROR(ROUND(I5/I3,3),"") -> 0.774
A7: 7 | G7: GM, goal | I7: =+VLOOKUP($C$4,List_items!$B:$L,7,0) -> 0
A8: 8 | G8: Covers: | H8: =+VLOOKUP($C$4,List_items!$B:$L,5,0) -> 1
A9: 9 | B9: MainGroup | C9: Ingredients | D9: Net dish | E9: Unit | F9: Waste | G9: Total use | H9: Unit Cost | I9: Costpris
A10: 10 | E10: =IFERROR(VLOOKUP(CONCATENATE($B10,$C10),'Ingredient list'!$A:$F,6,0),"") -> 0 | G10: =IFERROR(ROUND(D10/(1-F10),3),"") -> 0 | H10: =IFERROR(VLOOKUP(CONCATENATE($B10,$C10),'Ingredient list'!$A:$F,5,0),"") -> 0 | I10: =IFERROR(G10*H10,"") -> 0
A11: 11 | B11: Dairy_milk | C11: Sødmælk | D11: 0.5 | E11: =IFERROR(VLOOKUP(CONCATENATE($B11,$C11),'Ingredient list'!$A:$F,6,0),"") -> ltr | F11: 0.1 | G11: =IFERROR(ROUND(D11/(1-F11),3),"") -> 0.556 | H11: =IFERROR(VLOOKUP(CONCATENATE($B11,$C11),'Ingredient list'!$A:$F,5,0),"") -> 10 | I11: =IFERROR(G11*H11,"") -> 5.56
A12: 12 | B12: Dairy_egg | C12: hele æg | D12: 1 | E12: =IFERROR(VLOOKUP(CONCATENATE($B12,$C12),'Ingredient list'!$A:$F,6,0),"") -> dnk | F12: 0.2 | G12: 1.25 | H12: =IFERROR(VLOOKUP(CONCATENATE($B12,$C12),'Ingredient list'!$A:$F,5,0),"") -> 10 | I12: 12.5
A13: 13 | E13: =IFERROR(VLOOKUP(CONCATENATE($B13,$C13),'Ingredient list'!$A:$F,6,0),"") -> 0 | G13: 0 | H13: =IFERROR(VLOOKUP(CONCATENATE($B13,$C13),'Ingredient list'!$A:$F,5,0),"") -> 0 | I13: 0
A14: 14 | E14: =IFERROR(VLOOKUP(CONCATENATE($B14,$C14),'Ingredient list'!$A:$F,6,0),"") -> 0 | G14: 0 | H14: =IFERROR(VLOOKUP(CONCATENATE($B14,$C14),'Ingredient list'!$A:$F,5,0),"") -> 0 | I14: 0
A15: 15 | E15: =IFERROR(VLOOKUP(CONCATENATE($B15,$C15),'Ingredient list'!$A:$F,6,0),"") -> 0 | G15: 0 | H15: =IFERROR(VLOOKUP(CONCATENATE($B15,$C15),'Ingredient list'!$A:$F,5,0),"") -> 0 | I15: 0
A16: 16 | E16: =IFERROR(VLOOKUP(CONCATENATE($B16,$C16),'Ingredient list'!$A:$F,6,0),"") -> 0 | G16: 0 | H16: =IFERROR(VLOOKUP(CONCATENATE($B16,$C16),'Ingredient list'!$A:$F,5,0),"") -> 0 | I16: 0
A17: 17 | E17: =IFERROR(VLOOKUP(CONCATENATE($B17,$C17),'Ingredient list'!$A:$F,6,0),"") -> 0 | G17: 0 | H17: =IFERROR(VLOOKUP(CONCATENATE($B17,$C17),'Ingredient list'!$A:$F,5,0),"") -> 0 | I17: 0
A18: 18 | E18: =IFERROR(VLOOKUP(CONCATENATE($B18,$C18),'Ingredient list'!$A:$F,6,0),"") -> 0 | G18: 0 | H18: =IFERROR(VLOOKUP(CONCATENATE($B18,$C18),'Ingredient list'!$A:$F,5,0),"") -> 0 | I18: 0
A19: 19 | E19: =IFERROR(VLOOKUP(CONCATENATE($B19,$C19),'Ingredient list'!$A:$F,6,0),"") -> 0 | G19: 0 | H19: =IFERROR(VLOOKUP(CONCATENATE($B19,$C19),'Ingredient list'!$A:$F,5,0),"") -> 0 | I19: 0
A20: 20 | E20: =IFERROR(VLOOKUP(CONCATENATE($B20,$C20),'Ingredient list'!$A:$F,6,0),"") -> 0 | G20: 0 | H20: =IFERROR(VLOOKUP(CONCATENATE($B20,$C20),'Ingredient list'!$A:$F,5,0),"") -> 0 | I20: 0
A21: 21 | E21: =IFERROR(VLOOKUP(CONCATENATE($B21,$C21),'Ingredient list'!$A:$F,6,0),"") -> 0 | G21: 0 | H21: =IFERROR(VLOOKUP(CONCATENATE($B21,$C21),'Ingredient list'!$A:$F,5,0),"") -> 0 | I21: 0
A22: 22 | E22: =IFERROR(VLOOKUP(CONCATENATE($B22,$C22),'Ingredient list'!$A:$F,6,0),"") -> 0 | G22: 0 | H22: =IFERROR(VLOOKUP(CONCATENATE($B22,$C22),'Ingredient list'!$A:$F,5,0),"") -> 0 | I22: 0
A23: 23 | E23: =IFERROR(VLOOKUP(CONCATENATE($B23,$C23),'Ingredient list'!$A:$F,6,0),"") -> 0 | G23: 0 | H23: =IFERROR(VLOOKUP(CONCATENATE($B23,$C23),'Ingredient list'!$A:$F,5,0),"") -> 0 | I23: 0
A24: 24 | E24: =IFERROR(VLOOKUP(CONCATENATE($B24,$C24),'Ingredient list'!$A:$F,6,0),"") -> 0 | G24: 0 | H24: =IFERROR(VLOOKUP(CONCATENATE($B24,$C24),'Ingredient list'!$A:$F,5,0),"") -> 0 | I24: 0
A25: 25 | E25: =IFERROR(VLOOKUP(CONCATENATE($B25,$C25),'Ingredient list'!$A:$F,6,0),"") -> 0 | G25: 0 | H25: =IFERROR(VLOOKUP(CONCATENATE($B25,$C25),'Ingredient list'!$A:$F,5,0),"") -> 0 | I25: 0
A26: 26 | E26: =IFERROR(VLOOKUP(CONCATENATE($B26,$C26),'Ingredient list'!$A:$F,6,0),"") -> 0 | G26: 0 | H26: =IFERROR(VLOOKUP(CONCATENATE($B26,$C26),'Ingredient list'!$A:$F,5,0),"") -> 0 | I26: 0
A27: 27 | E27: =IFERROR(VLOOKUP(CONCATENATE($B27,$C27),'Ingredient list'!$A:$F,6,0),"") -> 0 | G27: 0 | H27: =IFERROR(VLOOKUP(CONCATENATE($B27,$C27),'Ingredient list'!$A:$F,5,0),"") -> 0 | I27: 0
A28: 28 | E28: =IFERROR(VLOOKUP(CONCATENATE($B28,$C28),'Ingredient list'!$A:$F,6,0),"") -> 0 | G28: 0 | H28: =IFERROR(VLOOKUP(CONCATENATE($B28,$C28),'Ingredient list'!$A:$F,5,0),"") -> 0 | I28: 0
A29: 29 | E29: =IFERROR(VLOOKUP(CONCATENATE($B29,$C29),'Ingredient list'!$A:$F,6,0),"") -> 0 | G29: 0 | H29: =IFERROR(VLOOKUP(CONCATENATE($B29,$C29),'Ingredient list'!$A:$F,5,0),"") -> 0 | I29: 0
A30: 30 | E30: =IFERROR(VLOOKUP(CONCATENATE($B30,$C30),'Ingredient list'!$A:$F,6,0),"") -> 0 | G30: 0 | H30: =IFERROR(VLOOKUP(CONCATENATE($B30,$C30),'Ingredient list'!$A:$F,5,0),"") -> 0 | I30: 0
A31: 31 | E31: =IFERROR(VLOOKUP(CONCATENATE($B31,$C31),'Ingredient list'!$A:$F,6,0),"") -> 0 | G31: 0 | H31: =IFERROR(VLOOKUP(CONCATENATE($B31,$C31),'Ingredient list'!$A:$F,5,0),"") -> 0 | I31: 0
A32: 32 | E32: =IFERROR(VLOOKUP(CONCATENATE($B32,$C32),'Ingredient list'!$A:$F,6,0),"") -> 0 | G32: 0 | H32: =IFERROR(VLOOKUP(CONCATENATE($B32,$C32),'Ingredient list'!$A:$F,5,0),"") -> 0 | I32: 0
A33: 33 | E33: =IFERROR(VLOOKUP(CONCATENATE($B33,$C33),'Ingredient list'!$A:$F,6,0),"") -> 0 | G33: 0 | H33: =IFERROR(VLOOKUP(CONCATENATE($B33,$C33),'Ingredient list'!$A:$F,5,0),"") -> 0 | I33: 0
A34: 34 | E34: =IFERROR(VLOOKUP(CONCATENATE($B34,$C34),'Ingredient list'!$A:$F,6,0),"") -> 0 | G34: 0 | H34: =IFERROR(VLOOKUP(CONCATENATE($B34,$C34),'Ingredient list'!$A:$F,5,0),"") -> 0 | I34: 0
A35: 35 | E35: =IFERROR(VLOOKUP(CONCATENATE($B35,$C35),'Ingredient list'!$A:$F,6,0),"") -> 0 | G35: 0 | H35: =IFERROR(VLOOKUP(CONCATENATE($B35,$C35),'Ingredient list'!$A:$F,5,0),"") -> 0 | I35: 0
A36: 36 | B36: Fremgangs måde | G36: Costpris total | I36: =SUM(I10:I35) -> 18.06
A37: 37 | B37: COMMENTS
A38: 38
A39: 39
A40: 40
A41: 41
A42: 42
A43: 43
A44: 44
A45: 45
A46: 46
A47: 47
A48: 48
A49: 49
A50: 50

Sheet Main_1
A1: =+ROW() -> 1 | B1: Name of course | C1: =IFERROR(VLOOKUP($C$4,List_items!$B:$I,2,0),"") -> Main nr 1 | G1: Calc Price | I1: =+IFERROR(ROUND(I36/(1-I7)*1.25,2),"") -> 33.78
A2: =+ROW() -> 2 | B2: Restaurant | C2: =+List_items!$C$1 -> BUTIK XXYY | G2: Menu Price, fixed | I2: =+VLOOKUP($C$4,List_items!$B:$L,6,0) -> 225
A3: 3 | B3: At menu form/updated | D3: =IFERROR(VLOOKUP($C$4,List_items!$B:$I,3,0),"") -> 00:00:00 | E3: =+VLOOKUP($C$4,List_items!$B:$I,4,0) -> 00:00:00 | G3: Menu Price, ex VAT | I3: =IFERROR(ROUND(I2/(1+List_items!C2),0),"") -> 180
A4: 4 | B4: Fane_item value | C4: Main_1 | G4: Cost, 1 unit | I4: =+IFERROR(ROUND(I36/H8,2),"") -> 27.03
A5: 5 | G5: Gr Profit, act | I5: =+IFERROR(I3-I4,"") -> 152.97
A6: 6 | G6: Gr Margin, act | I6: =+IFERROR(ROUND(I5/I3,3),"") -> 0.85
A7: 7 | G7: GM, goal | I7: =+VLOOKUP($C$4,List_items!$B:$L,7,0) -> 0
A8: 8 | G8: Covers: | H8: =+VLOOKUP($C$4,List_items!$B:$L,5,0) -> 1
A9: 9 | B9: MainGroup | C9: Ingredients | D9: Net dish | E9: Unit | F9: Waste | G9: Total use | H9: Unit Cost | I9: Costpris
A10: 10 | E10: =IFERROR(VLOOKUP(CONCATENATE($B10,$C10),'Ingredient list'!$A:$F,6,0),"") -> 0 | G10: =IFERROR(ROUND(D10/(1-F10),3),"") -> 0 | H10: =IFERROR(VLOOKUP(CONCATENATE($B10,$C10),'Ingredient list'!$A:$F,5,0),"") -> 0 | I10: =IFERROR(G10*H10,"") -> 0
A11: 11 | E11: =IFERROR(VLOOKUP(CONCATENATE($B11,$C11),'Ingredient list'!$A:$F,6,0),"") -> 0 | G11: =IFERROR(ROUND(D11/(1-F11),3),"") -> 0 | H11: =IFERROR(VLOOKUP(CONCATENATE($B11,$C11),'Ingredient list'!$A:$F,5,0),"") -> 0 | I11: =IFERROR(G11*H11,"") -> 0
A12: 12 | B12: Grocery_DryGoods | C12: Linguini | D12: 0.3 | E12: =IFERROR(VLOOKUP(CONCATENATE($B12,$C12),'Ingredient list'!$A:$F,6,0),"") -> kg | F12: 0.2 | G12: 0.375 | H12: =IFERROR(VLOOKUP(CONCATENATE($B12,$C12),'Ingredient list'!$A:$F,5,0),"") -> 25 | I12: 9.375
A13: 13 | E13: =IFERROR(VLOOKUP(CONCATENATE($B13,$C13),'Ingredient list'!$A:$F,6,0),"") -> 0 | G13: 0 | H13: =IFERROR(VLOOKUP(CONCATENATE($B13,$C13),'Ingredient list'!$A:$F,5,0),"") -> 0 | I13: 0
A14: 14 | E14: =IFERROR(VLOOKUP(CONCATENATE($B14,$C14),'Ingredient list'!$A:$F,6,0),"") -> 0 | G14: 0 | H14: =IFERROR(VLOOKUP(CONCATENATE($B14,$C14),'Ingredient list'!$A:$F,5,0),"") -> 0 | I14: 0
A15: 15 | E15: =IFERROR(VLOOKUP(CONCATENATE($B15,$C15),'Ingredient list'!$A:$F,6,0),"") -> 0 | G15: 0 | H15: =IFERROR(VLOOKUP(CONCATENATE($B15,$C15),'Ingredient list'!$A:$F,5,0),"") -> 0 | I15: 0
A16: 16 | E16: =IFERROR(VLOOKUP(CONCATENATE($B16,$C16),'Ingredient list'!$A:$F,6,0),"") -> 0 | G16: 0 | H16: =IFERROR(VLOOKUP(CONCATENATE($B16,$C16),'Ingredient list'!$A:$F,5,0),"") -> 0 | I16: 0
A17: 17 | E17: =IFERROR(VLOOKUP(CONCATENATE($B17,$C17),'Ingredient list'!$A:$F,6,0),"") -> 0 | G17: 0 | H17: =IFERROR(VLOOKUP(CONCATENATE($B17,$C17),'Ingredient list'!$A:$F,5,0),"") -> 0 | I17: 0
A18: 18 | E18: =IFERROR(VLOOKUP(CONCATENATE($B18,$C18),'Ingredient list'!$A:$F,6,0),"") -> 0 | G18: 0 | H18: =IFERROR(VLOOKUP(CONCATENATE($B18,$C18),'Ingredient list'!$A:$F,5,0),"") -> 0 | I18: 0
A19: 19 | E19: =IFERROR(VLOOKUP(CONCATENATE($B19,$C19),'Ingredient list'!$A:$F,6,0),"") -> 0 | G19: 0 | H19: =IFERROR(VLOOKUP(CONCATENATE($B19,$C19),'Ingredient list'!$A:$F,5,0),"") -> 0 | I19: 0
A20: 20 | B20: Dairy_milk | C20: Sødmælk | D20: 1.5 | E20: =IFERROR(VLOOKUP(CONCATENATE($B20,$C20),'Ingredient list'!$A:$F,6,0),"") -> ltr | F20: 0.15 | G20: 1.765 | H20: =IFERROR(VLOOKUP(CONCATENATE($B20,$C20),'Ingredient list'!$A:$F,5,0),"") -> 10 | I20: 17.65
A21: 21 | E21: =IFERROR(VLOOKUP(CONCATENATE($B21,$C21),'Ingredient list'!$A:$F,6,0),"") -> 0 | G21: 0 | H21: =IFERROR(VLOOKUP(CONCATENATE($B21,$C21),'Ingredient list'!$A:$F,5,0),"") -> 0 | I21: 0
A22: 22 | E22: =IFERROR(VLOOKUP(CONCATENATE($B22,$C22),'Ingredient list'!$A:$F,6,0),"") -> 0 | G22: 0 | H22: =IFERROR(VLOOKUP(CONCATENATE($B22,$C22),'Ingredient list'!$A:$F,5,0),"") -> 0 | I22: 0
A23: 23 | E23: =IFERROR(VLOOKUP(CONCATENATE($B23,$C23),'Ingredient list'!$A:$F,6,0),"") -> 0 | G23: 0 | H23: =IFERROR(VLOOKUP(CONCATENATE($B23,$C23),'Ingredient list'!$A:$F,5,0),"") -> 0 | I23: 0
A24: 24 | E24: =IFERROR(VLOOKUP(CONCATENATE($B24,$C24),'Ingredient list'!$A:$F,6,0),"") -> 0 | G24: 0 | H24: =IFERROR(VLOOKUP(CONCATENATE($B24,$C24),'Ingredient list'!$A:$F,5,0),"") -> 0 | I24: 0
A25: 25 | E25: =IFERROR(VLOOKUP(CONCATENATE($B25,$C25),'Ingredient list'!$A:$F,6,0),"") -> 0 | G25: 0 | H25: =IFERROR(VLOOKUP(CONCATENATE($B25,$C25),'Ingredient list'!$A:$F,5,0),"") -> 0 | I25: 0
A26: 26 | E26: =IFERROR(VLOOKUP(CONCATENATE($B26,$C26),'Ingredient list'!$A:$F,6,0),"") -> 0 | G26: 0 | H26: =IFERROR(VLOOKUP(CONCATENATE($B26,$C26),'Ingredient list'!$A:$F,5,0),"") -> 0 | I26: 0
A27: 27 | E27: =IFERROR(VLOOKUP(CONCATENATE($B27,$C27),'Ingredient list'!$A:$F,6,0),"") -> 0 | G27: 0 | H27: =IFERROR(VLOOKUP(CONCATENATE($B27,$C27),'Ingredient list'!$A:$F,5,0),"") -> 0 | I27: 0
A28: 28 | E28: =IFERROR(VLOOKUP(CONCATENATE($B28,$C28),'Ingredient list'!$A:$F,6,0),"") -> 0 | G28: 0 | H28: =IFERROR(VLOOKUP(CONCATENATE($B28,$C28),'Ingredient list'!$A:$F,5,0),"") -> 0 | I28: 0
A29: 29 | E29: =IFERROR(VLOOKUP(CONCATENATE($B29,$C29),'Ingredient list'!$A:$F,6,0),"") -> 0 | G29: 0 | H29: =IFERROR(VLOOKUP(CONCATENATE($B29,$C29),'Ingredient list'!$A:$F,5,0),"") -> 0 | I29: 0
A30: 30 | E30: =IFERROR(VLOOKUP(CONCATENATE($B30,$C30),'Ingredient list'!$A:$F,6,0),"") -> 0 | G30: 0 | H30: =IFERROR(VLOOKUP(CONCATENATE($B30,$C30),'Ingredient list'!$A:$F,5,0),"") -> 0 | I30: 0
A31: 31 | E31: =IFERROR(VLOOKUP(CONCATENATE($B31,$C31),'Ingredient list'!$A:$F,6,0),"") -> 0 | G31: 0 | H31: =IFERROR(VLOOKUP(CONCATENATE($B31,$C31),'Ingredient list'!$A:$F,5,0),"") -> 0 | I31: 0
A32: 32 | E32: =IFERROR(VLOOKUP(CONCATENATE($B32,$C32),'Ingredient list'!$A:$F,6,0),"") -> 0 | G32: 0 | H32: =IFERROR(VLOOKUP(CONCATENATE($B32,$C32),'Ingredient list'!$A:$F,5,0),"") -> 0 | I32: 0
A33: 33 | E33: =IFERROR(VLOOKUP(CONCATENATE($B33,$C33),'Ingredient list'!$A:$F,6,0),"") -> 0 | G33: 0 | H33: =IFERROR(VLOOKUP(CONCATENATE($B33,$C33),'Ingredient list'!$A:$F,5,0),"") -> 0 | I33: 0
A34: 34 | E34: =IFERROR(VLOOKUP(CONCATENATE($B34,$C34),'Ingredient list'!$A:$F,6,0),"") -> 0 | G34: 0 | H34: =IFERROR(VLOOKUP(CONCATENATE($B34,$C34),'Ingredient list'!$A:$F,5,0),"") -> 0 | I34: 0
A35: 35 | E35: =IFERROR(VLOOKUP(CONCATENATE($B35,$C35),'Ingredient list'!$A:$F,6,0),"") -> 0 | G35: 0 | H35: =IFERROR(VLOOKUP(CONCATENATE($B35,$C35),'Ingredient list'!$A:$F,5,0),"") -> 0 | I35: 0
A36: 36 | B36: Fremgangs måde | G36: Costpris total | I36: =SUM(I10:I35) -> 27.025
A37: 37 | B37: COMMENTS
A38: 38
A39: 39
A40: 40
A41: 41
A42: 42
A43: 43
A44: 44
A45: 45
A46: 46
A47: 47
A48: 48
A49: 49
A50: 50

Sheet Main_2
A1: =+ROW() -> 1 | B1: Name of course | C1: =IFERROR(VLOOKUP($C$4,List_items!$B:$I,2,0),"") -> Main nr 2 | G1: Calc Price | I1: =+IFERROR(ROUND(I36/(1-I7)*1.25,2),"") -> 36.72
A2: =+ROW() -> 2 | B2: Restaurant | C2: =+List_items!$C$1 -> BUTIK XXYY | G2: Menu Price, fixed | I2: =+VLOOKUP($C$4,List_items!$B:$L,6,0) -> 295
A3: 3 | B3: At menu form/updated | D3: =IFERROR(VLOOKUP($C$4,List_items!$B:$I,3,0),"") -> 00:00:00 | E3: =+VLOOKUP($C$4,List_items!$B:$I,4,0) -> 00:00:00 | G3: Menu Price, ex VAT | I3: =IFERROR(ROUND(I2/(1+List_items!C2),0),"") -> 236
A4: 4 | B4: Fane_item value | C4: Main_2 | G4: Cost, 1 unit | I4: =+IFERROR(ROUND(I36/H8,2),"") -> 29.38
A5: 5 | G5: Gr Profit, act | I5: =+IFERROR(I3-I4,"") -> 206.62
A6: 6 | G6: Gr Margin, act | I6: =+IFERROR(ROUND(I5/I3,3),"") -> 0.876
A7: 7 | G7: GM, goal | I7: =+VLOOKUP($C$4,List_items!$B:$L,7,0) -> 0
A8: 8 | G8: Covers: | H8: =+VLOOKUP($C$4,List_items!$B:$L,5,0) -> 1
A9: 9 | B9: MainGroup | C9: Ingredients | D9: Net dish | E9: Unit | F9: Waste | G9: Total use | H9: Unit Cost | I9: Costpris
A10: 10 | E10: =IFERROR(VLOOKUP(CONCATENATE($B10,$C10),'Ingredient list'!$A:$F,6,0),"") -> 0 | G10: =IFERROR(ROUND(D10/(1-F10),3),"") -> 0 | H10: =IFERROR(VLOOKUP(CONCATENATE($B10,$C10),'Ingredient list'!$A:$F,5,0),"") -> 0 | I10: =IFERROR(G10*H10,"") -> 0
A11: 11 | E11: =IFERROR(VLOOKUP(CONCATENATE($B11,$C11),'Ingredient list'!$A:$F,6,0),"") -> 0 | G11: =IFERROR(ROUND(D11/(1-F11),3),"") -> 0 | H11: =IFERROR(VLOOKUP(CONCATENATE($B11,$C11),'Ingredient list'!$A:$F,5,0),"") -> 0 | I11: =IFERROR(G11*H11,"") -> 0
A12: 12 | B12: Grocery_DryGoods | C12: Div Pasta | D12: 0.3 | E12: =IFERROR(VLOOKUP(CONCATENATE($B12,$C12),'Ingredient list'!$A:$F,6,0),"") -> kg | F12: 0.2 | G12: 0.375 | H12: =IFERROR(VLOOKUP(CONCATENATE($B12,$C12),'Ingredient list'!$A:$F,5,0),"") -> 25 | I12: 9.375
A13: 13 | E13: =IFERROR(VLOOKUP(CONCATENATE($B13,$C13),'Ingredient list'!$A:$F,6,0),"") -> 0 | G13: 0 | H13: =IFERROR(VLOOKUP(CONCATENATE($B13,$C13),'Ingredient list'!$A:$F,5,0),"") -> 0 | I13: 0
A14: 14 | E14: =IFERROR(VLOOKUP(CONCATENATE($B14,$C14),'Ingredient list'!$A:$F,6,0),"") -> 0 | G14: 0 | H14: =IFERROR(VLOOKUP(CONCATENATE($B14,$C14),'Ingredient list'!$A:$F,5,0),"") -> 0 | I14: 0
A15: 15 | E15: =IFERROR(VLOOKUP(CONCATENATE($B15,$C15),'Ingredient list'!$A:$F,6,0),"") -> 0 | G15: 0 | H15: =IFERROR(VLOOKUP(CONCATENATE($B15,$C15),'Ingredient list'!$A:$F,5,0),"") -> 0 | I15: 0
A16: 16 | E16: =IFERROR(VLOOKUP(CONCATENATE($B16,$C16),'Ingredient list'!$A:$F,6,0),"") -> 0 | G16: 0 | H16: =IFERROR(VLOOKUP(CONCATENATE($B16,$C16),'Ingredient list'!$A:$F,5,0),"") -> 0 | I16: 0
A17: 17 | E17: =IFERROR(VLOOKUP(CONCATENATE($B17,$C17),'Ingredient list'!$A:$F,6,0),"") -> 0 | G17: 0 | H17: =IFERROR(VLOOKUP(CONCATENATE($B17,$C17),'Ingredient list'!$A:$F,5,0),"") -> 0 | I17: 0
A18: 18 | E18: =IFERROR(VLOOKUP(CONCATENATE($B18,$C18),'Ingredient list'!$A:$F,6,0),"") -> 0 | G18: 0 | H18: =IFERROR(VLOOKUP(CONCATENATE($B18,$C18),'Ingredient list'!$A:$F,5,0),"") -> 0 | I18: 0
A19: 19 | E19: =IFERROR(VLOOKUP(CONCATENATE($B19,$C19),'Ingredient list'!$A:$F,6,0),"") -> 0 | G19: 0 | H19: =IFERROR(VLOOKUP(CONCATENATE($B19,$C19),'Ingredient list'!$A:$F,5,0),"") -> 0 | I19: 0
A20: 20 | E20: =IFERROR(VLOOKUP(CONCATENATE($B20,$C20),'Ingredient list'!$A:$F,6,0),"") -> 0 | G20: 0 | H20: =IFERROR(VLOOKUP(CONCATENATE($B20,$C20),'Ingredient list'!$A:$F,5,0),"") -> 0 | I20: 0
A21: 21 | E21: =IFERROR(VLOOKUP(CONCATENATE($B21,$C21),'Ingredient list'!$A:$F,6,0),"") -> 0 | G21: 0 | H21: =IFERROR(VLOOKUP(CONCATENATE($B21,$C21),'Ingredient list'!$A:$F,5,0),"") -> 0 | I21: 0
A22: 22 | E22: =IFERROR(VLOOKUP(CONCATENATE($B22,$C22),'Ingredient list'!$A:$F,6,0),"") -> 0 | G22: 0 | H22: =IFERROR(VLOOKUP(CONCATENATE($B22,$C22),'Ingredient list'!$A:$F,5,0),"") -> 0 | I22: 0
A23: 23 | E23: =IFERROR(VLOOKUP(CONCATENATE($B23,$C23),'Ingredient list'!$A:$F,6,0),"") -> 0 | G23: 0 | H23: =IFERROR(VLOOKUP(CONCATENATE($B23,$C23),'Ingredient list'!$A:$F,5,0),"") -> 0 | I23: 0
A24: 24 | E24: =IFERROR(VLOOKUP(CONCATENATE($B24,$C24),'Ingredient list'!$A:$F,6,0),"") -> 0 | G24: 0 | H24: =IFERROR(VLOOKUP(CONCATENATE($B24,$C24),'Ingredient list'!$A:$F,5,0),"") -> 0 | I24: 0
A25: 25 | E25: =IFERROR(VLOOKUP(CONCATENATE($B25,$C25),'Ingredient list'!$A:$F,6,0),"") -> 0 | G25: 0 | H25: =IFERROR(VLOOKUP(CONCATENATE($B25,$C25),'Ingredient list'!$A:$F,5,0),"") -> 0 | I25: 0
A26: 26 | E26: =IFERROR(VLOOKUP(CONCATENATE($B26,$C26),'Ingredient list'!$A:$F,6,0),"") -> 0 | G26: 0 | H26: =IFERROR(VLOOKUP(CONCATENATE($B26,$C26),'Ingredient list'!$A:$F,5,0),"") -> 0 | I26: 0
A27: 27 | E27: =IFERROR(VLOOKUP(CONCATENATE($B27,$C27),'Ingredient list'!$A:$F,6,0),"") -> 0 | G27: 0 | H27: =IFERROR(VLOOKUP(CONCATENATE($B27,$C27),'Ingredient list'!$A:$F,5,0),"") -> 0 | I27: 0
A28: 28 | E28: =IFERROR(VLOOKUP(CONCATENATE($B28,$C28),'Ingredient list'!$A:$F,6,0),"") -> 0 | G28: 0 | H28: =IFERROR(VLOOKUP(CONCATENATE($B28,$C28),'Ingredient list'!$A:$F,5,0),"") -> 0 | I28: 0
A29: 29 | E29: =IFERROR(VLOOKUP(CONCATENATE($B29,$C29),'Ingredient list'!$A:$F,6,0),"") -> 0 | G29: 0 | H29: =IFERROR(VLOOKUP(CONCATENATE($B29,$C29),'Ingredient list'!$A:$F,5,0),"") -> 0 | I29: 0
A30: 30 | E30: =IFERROR(VLOOKUP(CONCATENATE($B30,$C30),'Ingredient list'!$A:$F,6,0),"") -> 0 | G30: 0 | H30: =IFERROR(VLOOKUP(CONCATENATE($B30,$C30),'Ingredient list'!$A:$F,5,0),"") -> 0 | I30: 0
A31: 31 | B31: Dairy_milk | C31: Sødmælk | D31: 2 | E31: =IFERROR(VLOOKUP(CONCATENATE($B31,$C31),'Ingredient list'!$A:$F,6,0),"") -> ltr | G31: 2 | H31: =IFERROR(VLOOKUP(CONCATENATE($B31,$C31),'Ingredient list'!$A:$F,5,0),"") -> 10 | I31: 20
A32: 32 | E32: =IFERROR(VLOOKUP(CONCATENATE($B32,$C32),'Ingredient list'!$A:$F,6,0),"") -> 0 | G32: 0 | H32: =IFERROR(VLOOKUP(CONCATENATE($B32,$C32),'Ingredient list'!$A:$F,5,0),"") -> 0 | I32: 0
A33: 33 | E33: =IFERROR(VLOOKUP(CONCATENATE($B33,$C33),'Ingredient list'!$A:$F,6,0),"") -> 0 | G33: 0 | H33: =IFERROR(VLOOKUP(CONCATENATE($B33,$C33),'Ingredient list'!$A:$F,5,0),"") -> 0 | I33: 0
A34: 34 | E34: =IFERROR(VLOOKUP(CONCATENATE($B34,$C34),'Ingredient list'!$A:$F,6,0),"") -> 0 | G34: 0 | H34: =IFERROR(VLOOKUP(CONCATENATE($B34,$C34),'Ingredient list'!$A:$F,5,0),"") -> 0 | I34: 0
A35: 35 | E35: =IFERROR(VLOOKUP(CONCATENATE($B35,$C35),'Ingredient list'!$A:$F,6,0),"") -> 0 | G35: 0 | H35: =IFERROR(VLOOKUP(CONCATENATE($B35,$C35),'Ingredient list'!$A:$F,5,0),"") -> 0 | I35: 0
A36: 36 | B36: Fremgangs måde | G36: Costpris total | I36: =SUM(I10:I35) -> 29.375
A37: 37 | B37: COMMENTS
A38: 38
A39: 39
A40: 40
A41: 41
A42: 42
A43: 43
A44: 44
A45: 45
A46: 46
A47: 47
A48: 48
A49: 49
A50: 50

Sheet Opslag
A1: DKK | B1: 2
A2: EUR | B2: 3
A3: GBP | B3: 4
A6: MainGroup
A8: Dairy_butter
A9: Dairy_cheese
A10: Dairy_egg
A11: Dairy_milk
A12: Grocery_DryGoods
